bitfinex/quotes_ETHUSD_20250815
["timestamp","ask_amount","ask_price","bid_price","bid_amount"]
[1755268510109,3.574,4546.3,4545.5,0.4784]
[1755268510320,12.7582,4547.4,4545.5,0.4784]
[1755268510321,9.279,4547.4,4546.3,2.19955006]
[1755268510630,3.574,4547.3,4546.8,2.19932497]
[1755268510816,3.574,4547.3,4546.9,0.4784]
[1755268511520,3.574,4547.2,4546.9,0.4784]
[1755268511691,3.574,4547.2,4546.9,2.6776898]
[1755268511896,5.279,4547.4,4546.9,2.6776898]
[1755268511897,5.279,4547.4,4547.0,0.4784]
[1755268512193,3.574,4547.3,4546.4,0.4784]
[1755268512396,3.574,4547.3,4545.9,5.19978183]
[1755268512397,0.1096,4547.0,4545.9,5.19978183]
[1755268512599,0.1096,4546.7,4546.0,0.1096]
[1755268512997,0.1096,4546.7,4546.1,2.1996801]
[1755268513300,3.574,4546.6,4546.0,2.30930611]
[1755268513601,3.574,4546.6,4546.2,2.19963925]
[1755268513795,0.1096,4546.7,4546.2,2.19963925]
[1755268513796,3.574,4546.5,4546.4,2.19954249]
[1755268514135,0.1096,4546.7,4546.4,0.4784]
[1755268514295,0.1096,4546.7,4546.1,2.19967363]
[1755268514296,0.8853,4547.2,4546.1,2.19967363]
[1755268514497,0.1096,4547.2,4546.5,0.4784]
[1755268514819,5.279,4547.4,4547.1,0.1096]
[1755268515134,0.1096,4548.1,4547.7,2.19890557]
[1755268515339,0.4514,4549.0,4547.8,0.588]
[1755268515510,0.1096,4548.6,4547.8,0.588]
[1755268516030,0.1096,4548.1,4547.5,0.1096]
[1755268516233,3.573,4548.0,4547.5,0.1096]
[1755268516534,0.1096,4548.1,4548.0,2.19876868]
[1755268516850,3.573,4548.1,4548.0,0.4784]
[1755268516997,3.573,4548.1,4547.4,0.4784]
[1755268517434,3.6826,4548.1,4547.5,0.1096]
[1755268517750,0.1096,4548.1,4547.5,0.1096]
[1755268517959,3.573,4548.0,4547.7,0.1096]
[1755268518107,0.1096,4548.4,4547.7,0.1096]
[1755268518108,3.573,4547.9,4547.7,0.1096]
[1755268518306,0.9306,4547.8,4546.3,0.4784]
[1755268518506,2.19915989,4547.2,4546.7,0.1096]
[1755268518760,3.573,4547.1,4546.7,0.1096]
[1755268519415,3.573,4547.0,4546.7,0.1096]
[1755268520251,2.19939736,4546.7,4546.2,0.1096]
[1755268520461,0.1096,4546.8,4546.2,0.1096]
[1755268521248,2.30895614,4546.8,4546.2,0.1096]
[1755268521459,0.1096,4546.8,4546.2,0.1096]
[1755268521656,2.19947466,4546.6,4546.2,0.1096]
[1755268521814,5.77250399,4546.5,4545.8,0.4794]
[1755268522159,3.573,4546.5,4546.0,0.1096]
[1755268522353,5.77251006,4546.5,4546.0,0.1096]
[1755268522852,3.573,4546.5,4546.0,0.1096]
[1755268523207,5.77250115,4546.5,4546.0,0.1096]
[1755268523406,2.19955002,4546.4,4546.0,0.1096]
[1755268523641,5.77249839,4546.5,4546.0,0.1096]
[1755268523837,3.573,4546.5,4546.0,0.1096]
[1755268524205,5.77250288,4546.5,4546.0,0.1096]
[1755268524408,3.573,4546.5,4546.0,0.1096]
[1755268524610,0.1096,4546.8,4546.0,0.1096]
[1755268524857,3.572,4546.7,4546.0,0.1096]
[1755268525169,4.0,4546.9,4546.4,0.1096]
[1755268525170,3.572,4546.6,4546.4,0.1096]
[1755268525458,4.0,4546.5,4546.4,0.1096]
[1755268525656,3.572,4546.6,4546.4,0.1096]
[1755268526433,6.12864698,4546.6,4545.8,0.001]
[1755268526635,3.9292,4546.6,4546.0,0.1096]
[1755268526834,2.19954419,4546.4,4546.0,0.1096]
[1755268527151,1.54031958,4549.4,4549.3,2.19814037]
[1755268527355,4.0,4549.3,4549.2,2.19818869]
[1755268528158,4.0,4549.3,4549.0,2.19826407]
[1755268528159,3.572,4550.3,4549.8,2.19786839]
[1755268528360,3.572,4550.3,4549.8,2.19785291]
[1755268528815,3.572,4550.3,4549.9,2.19783057]
[1755268529017,0.9306,4550.2,4548.6,2.19847865]
[1755268529324,3.572,4550.3,4549.8,2.19787792]
[1755268529556,0.9306,4550.7,4548.9,2.19833366]
[1755268529557,3.572,4550.2,4549.3,2.1981167]
[1755268529719,3.572,4550.2,4550.0,2.19775983]
[1755268529947,3.572,4550.2,4549.0,2.19825063]
[1755268530148,3.572,4550.2,4549.9,2.19783736]
[1755268530347,3.572,4550.2,4549.1,3.24487506]
[1755268530348,3.572,4550.2,4549.1,0.24487506]
[1755268530578,3.572,4550.2,4549.3,2.19814037]
[1755268530777,3.572,4550.2,4550.1,2.19775389]
[1755268531225,0.002,4550.3,4550.2,2.19770559]
[1755268531351,0.0012,4550.3,4550.2,2.19770559]
[1755268531657,0.0012,4550.3,4549.1,0.24487506]
[1755268531991,0.0012,4550.3,4549.0,2.19828533]
[1755268532190,0.0012,4550.3,4549.0,0.55]
[1755268532348,0.0012,4550.3,4549.7,2.19790073]
[1755268532688,0.0012,4550.3,4549.0,2.19828533]
[1755268532858,0.0012,4550.3,4550.1,2.19774714]
[1755268533060,0.0012,4550.3,4548.9,2.44883264]
[1755268533260,0.0012,4550.3,4549.0,0.54488326]
[1755268533464,0.0012,4550.3,4549.8,2.19785801]
[1755268533895,0.0012,4550.3,4549.0,3.0]
[1755268534187,0.4804,4550.3,4549.0,2.19828533]
[1755268534394,0.4804,4550.3,4548.9,0.2505]
[1755268534604,0.4804,4550.3,4545.6,0.11480774]
[1755268534605,0.4514,4550.2,4548.4,0.2505]
[1755268534746,0.4514,4550.2,4547.5,0.2515]
[1755268534944,0.4514,4550.2,4548.8,2.19837968]
[1755268534945,2.19794106,4549.8,4548.8,2.19837968]
[1755268535187,4.5016,4549.7,4547.7,2.19891373]
[1755268535344,2.19806179,4549.5,4547.7,2.19891373]
[1755268535545,1.72730288,4549.4,4547.8,0.30525677]
[1755268535782,0.9306,4549.3,4548.5,2.19852038]
[1755268536081,3.12874054,4549.3,4548.4,2.19856982]
[1755268536287,3.12874462,4549.3,4548.3,2.19857598]
[1755268536487,3.12874462,4549.3,4547.5,0.16556966]
[1755268536488,0.39254475,4549.2,4547.5,0.16556966]
[1755268536665,0.9306,4549.3,4548.3,2.19858308]
[1755268536866,0.9306,4549.3,4548.6,2.19846976]
[1755268537075,0.1096,4549.1,4548.4,2.30813633]
[1755268537289,3.57,4549.0,4548.5,2.19848717]
[1755268537860,3.57,4549.0,4548.4,2.30817066]
[1755268538063,4.0368,4549.0,4548.4,2.30816916]
[1755268538287,4.0368,4549.0,4548.5,2.19851809]
[1755268538486,4.0368,4549.0,4548.4,0.1096]
[1755268538487,4.0368,4549.0,4548.6,2.198471]
[1755268538678,4.0368,4549.0,4548.4,2.30814215]
[1755268538890,4.0368,4549.0,4548.5,2.19851405]
[1755268539087,2.19801626,4549.6,4548.5,0.45067714]
[1755268539088,3.57,4549.6,4548.5,0.45067714]
[1755268539276,3.57,4549.6,4549.3,0.1096]
[1755268539473,4.4752,4549.6,4549.3,0.1096]
[1755268539787,0.9052,4549.5,4549.3,0.1096]
[1755268540298,0.4668,4549.4,4549.3,0.1096]
[1755268540597,0.9052,4549.4,4549.3,0.1096]
[1755268541187,3.10329205,4549.4,4548.6,2.19843697]
[1755268541506,0.9052,4549.4,4548.9,0.1096]
[1755268541700,0.1096,4549.5,4548.9,0.1096]
[1755268541865,0.9052,4549.3,4548.9,0.1096]
[1755268542204,0.9052,4549.3,4548.9,0.1104]
[1755268542389,2.19790147,4549.8,4549.0,2.19823978]
[1755268542390,2.19790948,4549.8,4549.0,2.19823978]
[1755268542587,5.76795503,4549.7,4549.2,0.1096]
[1755268542967,0.9052,4549.6,4549.2,0.1096]
[1755268543601,0.9052,4549.5,4549.2,0.1096]
[1755268543803,0.1096,4549.4,4548.9,0.0008]
[1755268543979,3.57,4549.7,4548.9,0.0008]
[1755268544307,3.10302542,4550.0,4548.9,0.0008]
[1755268544600,5.87645358,4549.9,4549.2,0.1096]
[1755268544765,3.6786,4549.9,4549.2,2.30777348]
[1755268544968,3.6786,4549.9,4549.2,0.1096]
[1755268545220,2.19796334,4549.7,4549.2,0.1096]
[1755268545369,2.19800764,4549.6,4549.2,0.1096]
[1755268545569,2.1980118,4549.6,4549.2,0.1096]
[1755268545786,0.9052,4549.5,4549.2,0.1096]
[1755268545970,3.569,4549.4,4549.2,0.1096]
[1755268546315,4.4742,4549.4,4549.2,0.1096]
[1755268546516,1.0148,4549.9,4549.2,0.1096]
[1755268546813,0.1096,4549.9,4549.5,2.19800534]
[1755268547017,3.569,4549.8,4549.2,0.1096]
[1755268547184,0.0012,4550.3,4549.7,2.19794711]
[1755268547390,0.0012,4550.3,4550.2,2.19770559]
[1755268547717,0.002,4550.5,4550.4,2.197609]
[1755268547718,0.00120001,4550.5,4550.4,2.197609]
[1755268547921,0.00120001,4550.5,4550.4,6.27007655]
[1755268548077,1e-08,4550.5,4550.4,7.04860046]
[1755268548481,1e-08,4550.5,4550.4,6.49860046]
[1755268549315,1e-08,4550.5,4550.4,6.24810046]
[1755268549500,1e-08,4550.5,4550.4,6.40874316]
[1755268551505,1e-08,4550.5,4550.4,6.51834316]
[1755268551707,1e-08,4550.5,4550.4,6.76884316]
[1755268552798,1e-08,4550.5,4550.4,10.88684316]
[1755268553227,0.002,4550.8,4550.6,2.19751241]
[1755268553386,1e-08,4551.0,4550.9,5.74736755]
[1755268553718,1e-08,4551.0,4550.9,5.85696755]
[1755268553919,1e-08,4551.0,4550.9,9.67546755]
[1755268554222,0.002,4552.7,4551.4,0.55]
[1755268554523,0.002,4552.7,4552.6,2.85614702]
[1755268554709,0.002,4552.7,4552.6,9.65819093]
[1755268555205,0.002,4552.7,4552.6,7.57521789]
[1755268556188,0.002,4552.7,4552.6,3.34064391]
[1755268556506,0.002,4552.7,4552.6,3.1096]
[1755268557716,0.002,4552.7,4552.6,0.1096]
[1755268557918,0.9072,4552.7,4552.6,0.1096]
[1755268558817,0.002,4552.7,4552.6,0.1096]
[1755268559722,3.10369878,4552.7,4552.6,0.1096]
[1755268559906,3.63410921,4552.7,4552.6,0.1096]
[1755268560488,3.10369878,4552.7,4552.6,0.1096]
[1755268561188,3.10369878,4552.7,4550.3,0.2505]
[1755268561189,2.19654702,4552.6,4552.2,0.1096]
[1755268561404,2.19669178,4552.3,4552.2,0.1096]
[1755268562032,3.10189178,4552.3,4552.2,0.1096]
[1755268562236,3.10189178,4552.3,4552.2,0.1104]
[1755268562606,0.002,4552.7,4552.2,0.0008]
[1755268563342,2.19659527,4552.5,4552.2,0.0008]
[1755268563545,0.002,4552.7,4552.2,0.0008]
[1755268563546,2.19854033,4552.7,4552.2,0.0008]
[1755268563742,0.9052,4552.4,4552.2,0.0008]
[1755268564306,0.4384,4552.4,4552.2,0.0008]
[1755268564509,0.002,4552.7,4552.2,0.0008]
[1755268564510,0.9052,4552.3,4552.2,0.0008]
[1755268565109,2.1965483,4552.6,4552.2,0.0008]
[1755268565313,2.19660482,4552.5,4552.2,0.0008]
[1755268565544,0.9052,4552.4,4552.2,0.0008]
[1755268565749,0.002,4552.3,4552.2,0.0008]
[1755268566348,0.002,4552.3,4552.2,2.19754003]
[1755268566546,0.002,4552.3,4552.2,5.93697736]
[1755268567924,0.002,4552.3,4552.2,6.73747736]
[1755268568260,0.002,4552.3,4552.2,10.30347736]
[1755268569754,0.002,4552.7,4552.6,2.74654702]
[1755268569940,0.002,4552.7,4552.6,5.74654702]
[1755268570142,0.002,4552.9,4552.7,0.55]
[1755268570344,0.002,4554.0,4553.6,2.74606465]
[1755268570526,0.002,4554.0,4553.9,2.19591998]
[1755268570974,0.002,4554.0,4553.9,2.74591998]
[1755268571272,0.4822,4555.8,4554.9,2.19543788]
[1755268571438,0.9291,4556.4,4554.9,5.76043788]
[1755268571762,0.9291,4555.8,4554.9,5.76043788]
[1755268572069,0.9291,4555.8,4554.9,2.19543788]
[1755268572658,0.9291,4555.8,4554.9,2.30503788]
[1755268572860,0.9291,4555.8,4554.9,3.20408191]
[1755268573071,0.7317,4555.0,4554.9,2.30503788]
[1755268573226,1.1786,4555.0,4554.9,2.30503788]
[1755268573421,0.2495,4555.0,4554.9,2.30503788]
[1755268573662,0.2487,4555.0,4554.9,2.30503788]
[1755268573862,0.2487,4555.0,4554.9,6.07704707]
[1755268574160,0.2487,4555.0,4554.9,9.6190927]
[1755268575261,0.4822,4556.8,4555.0,3.55]
[1755268575459,0.4822,4556.8,4555.9,2.19495599]
[1755268575647,0.4822,4556.8,4556.7,0.1096]
[1755268576470,0.9291,4556.8,4556.7,0.1096]
[1755268578534,0.9291,4556.8,4554.6,27.20746812]
[1755268578762,0.9291,4556.8,4553.1,2.19628883]
[1755268578763,0.9291,4556.7,4555.1,3.0]
[1755268578946,0.9291,4556.6,4556.3,0.1096]
[1755268579158,0.9291,4556.5,4556.3,0.1096]
[1755268579345,0.9291,4556.4,4556.3,2.30431761]
[1755268579669,3.12381512,4556.4,4556.3,0.1096]
[1755268579963,3.12381512,4556.4,4554.7,3.563]
[1755268579964,1.24148151,4556.4,4556.0,0.1096]
[1755268580172,0.9291,4556.3,4556.0,0.1096]
[1755268580688,0.9291,4556.2,4556.0,0.1096]
[1755268580867,4.6017,4556.1,4555.3,0.1096]
[1755268581036,0.1096,4555.5,4554.8,0.61782859]
[1755268581241,0.9291,4555.4,4554.8,0.61782859]
[1755268581446,0.9291,4555.3,4554.8,0.50822859]
[1755268581652,3.6726,4555.8,4555.2,0.1096]
[1755268581849,4.32812816,4555.8,4555.2,0.1096]
[1755268582175,0.9291,4555.7,4555.2,0.1096]
[1755268582553,4.32812816,4555.8,4555.2,0.1104]
[1755268582554,0.9291,4555.6,4555.2,0.1104]
[1755268582880,2.19529445,4555.2,4554.8,0.50822859]
[1755268583174,0.9291,4555.1,4554.8,0.50822859]
[1755268583582,0.9291,4555.0,4554.8,0.50822859]
[1755268583751,0.9291,4554.9,4554.8,0.50822859]
[1755268584638,3.12453788,4554.9,4554.8,0.50822859]
[1755268584834,2.19555501,4554.7,4553.9,0.1096]
[1755268585096,2.19563069,4554.5,4553.5,2.19611006]
[1755268585285,3.12482414,4554.4,4553.5,0.1096]
[1755268585483,0.1096,4554.2,4553.5,0.1096]
[1755268585859,4.4469,4554.1,4553.5,0.1096]
[1755268586458,0.9291,4554.0,4553.5,0.1096]
[1755268586680,0.9291,4554.0,4552.0,5.75879658]
[1755268586881,4.0,4554.1,4551.7,2.19798054]
[1755268586882,1.0387,4553.9,4551.7,2.19798054]
[1755268587083,0.1096,4553.3,4552.7,0.1096]
[1755268587286,3.562,4553.2,4552.7,0.1096]
[1755268587686,0.9291,4553.1,4552.7,0.1096]
[1755268588091,0.9291,4553.0,4552.7,0.1096]
[1755268588391,0.1096,4553.3,4552.7,0.1096]
[1755268588392,0.1096,4553.3,4552.8,0.0219645]
[1755268588555,0.1096,4553.3,4552.7,0.1096]
[1755268588751,0.4469,4553.7,4552.1,0.001]
[1755268588991,4.0,4553.8,4553.4,2.19611327]
[1755268589302,4.0,4553.8,4553.7,2.19601642]
[1755268589446,0.4469,4554.2,4553.6,0.1096]
[1755268589654,0.9291,4554.1,4553.6,0.1096]
[1755268589964,0.002,4556.3,4554.0,27.20746812]
[1755268590161,0.002,4556.3,4556.2,2.19481146]
[1755268590365,4.002,4556.3,4556.2,2.19481146]
[1755268590599,0.002,4556.3,4556.2,6.51507621]
[1755268591084,0.002,4556.3,4556.2,6.04557621]
[1755268591389,0.002,4557.3,4556.2,6.04557621]
[1755268591390,0.002,4557.3,4557.2,2.19432985]
[1755268591883,0.002,4557.3,4557.2,2.30392985]
[1755268592084,0.002,4557.3,4557.2,2.30472985]
[1755268594357,2.1937799,4558.4,4557.2,0.1104]
[1755268594702,2.19360782,4558.7,4557.2,0.1104]
[1755268594703,2.41319088,4558.3,4557.2,0.0008]
[1755268594855,2.41319088,4558.3,4557.9,0.1096]
[1755268595366,0.21937799,4558.3,4557.9,0.1096]
[1755268595682,2.19394471,4558.0,4557.5,0.1096]
[1755268595880,3.619,4558.0,4557.5,0.1096]
[1755268596383,0.9271,4557.9,4557.5,0.1096]
[1755268596983,0.4424,4557.8,4557.5,0.1096]
[1755268597154,1.12736461,4557.8,4557.5,0.1096]
[1755268597355,0.4424,4557.7,4557.5,0.1096]
[1755268597669,0.9271,4557.7,4557.3,0.1096]
[1755268597863,0.68496461,4557.8,4557.3,0.1096]
[1755268597864,0.9271,4557.6,4557.3,0.1096]
[1755268598204,1.08830646,4557.6,4557.3,0.1096]
[1755268598367,3.619,4558.0,4557.2,0.0008]
[1755268598573,3.619,4558.0,4557.5,0.1096]
[1755268598974,0.4424,4557.9,4557.5,0.1096]
[1755268599292,0.4424,4557.8,4557.5,0.1096]
[1755268599474,3.619,4558.0,4557.5,0.1096]
[1755268599816,0.4424,4557.7,4557.5,0.1096]
[1755268600018,3.12123243,4557.7,4557.5,0.1096]
[1755268600173,0.9271,4557.6,4557.5,0.1096]
[1755268600376,0.4424,4557.6,4557.5,0.1096]
[1755268600680,0.4424,4557.6,4557.3,0.1096]
[1755268601083,0.3619,4557.9,4557.3,0.1096]
[1755268601286,2.1942817,4557.3,4557.2,0.0008]
[1755268601494,5.8002817,4557.3,4557.2,0.0008]
[1755268601675,6.7273817,4557.3,4557.2,0.0008]
[1755268601884,7.61954322,4557.3,4557.2,0.0008]
[1755268602703,11.16954322,4557.3,4557.2,0.0008]
[1755268603178,11.63613011,4557.3,4557.2,0.0008]
[1755268603808,15.63613011,4557.3,4557.2,0.0008]
[1755268605526,15.16954322,4557.3,4557.2,0.0008]
[1755268605976,17.48154322,4557.3,4557.2,0.0008]
[1755268606181,15.16954322,4557.3,4557.2,0.0008]
[1755268606917,14.61954322,4557.3,4557.2,0.0008]
[1755268607485,14.13484322,4557.3,4557.2,0.0008]
[1755268608112,14.61954322,4557.3,4557.2,0.0008]
[1755268608482,15.16954322,4557.3,4557.2,0.0008]
[1755268609890,10.08644322,4557.3,4557.2,0.0008]
[1755268610164,10.67944322,4557.3,4557.2,0.0008]
[1755268610415,4.0,4557.3,4557.2,0.4785]
[1755268610921,3.594,4557.4,4557.2,0.4785]
[1755268611106,3.594,4557.4,4557.2,0.0008]
[1755268611724,2.1942817,4557.3,4557.2,0.0008]
[1755268611925,2.6366817,4557.3,4557.2,0.0008]
[1755268612126,3.97482877,4557.3,4557.2,0.0008]
[1755268612342,3.97482877,4557.3,4556.9,0.1096]
[1755268612343,2.74442615,4557.0,4556.9,1e-08]
[1755268612505,0.55,4556.6,4555.8,0.001]
[1755268612705,4.9271,4557.2,4555.8,0.001]
[1755268612706,0.1096,4556.1,4555.8,0.001]
[1755268612905,3.6,4556.0,4555.8,0.1106]
[1755268613132,3.6,4555.9,4555.8,0.1106]
[1755268613450,3.6,4555.9,4555.8,0.001]
[1755268613954,4.152,4555.9,4555.8,0.001]
[1755268614127,6.34695599,4555.9,4555.8,0.001]
[1755268614648,7.20114019,4555.9,4555.8,0.001]
[1755268615241,5.90455599,4555.9,4555.8,0.001]
[1755268615447,0.1096,4555.9,4555.8,0.001]
[1755268615744,3.609,4556.9,4555.8,1.0527]
[1755268615944,3.609,4556.8,4556.7,0.1096]
[1755268616314,3.609,4556.8,4556.7,0.5873]
[1755268616948,3.609,4556.8,4556.7,0.1096]
[1755268617151,2.19409023,4557.7,4556.8,2.19451276]
[1755268617444,3.7166,4557.6,4556.9,2.19446053]
[1755268617676,3.607,4557.6,4556.9,2.19447431]
[1755268617810,3.607,4557.6,4557.1,0.1096]
[1755268618012,4.00524343,4557.6,4557.1,0.1096]
[1755268618413,4.00524343,4557.6,4557.2,0.0448]
[1755268618812,3.607,4557.6,4557.2,0.0448]
[1755268619047,2.19420121,4557.5,4557.2,0.0448]
[1755268619242,3.607,4557.6,4557.2,0.0448]
[1755268619917,3.607,4557.6,4557.2,0.5225]
[1755268620117,3.607,4557.6,4557.5,0.1096]
[1755268620625,3.607,4557.6,4557.2,0.1544]
[1755268621347,3.607,4557.6,4557.2,0.0448]
[1755268622619,3.607,4557.6,4557.2,0.5225]
[1755268623525,3.607,4557.6,4557.2,0.0448]
[1755268624052,2.19419181,4557.5,4557.2,0.0448]
[1755268624223,6.24353865,4557.6,4557.2,0.0448]
[1755268624423,3.607,4557.6,4557.2,0.0448]
[1755268624719,0.4424,4557.5,4557.2,0.0448]
[1755268625355,2.3038817,4557.3,4557.2,0.0448]
[1755268627264,2.7469817,4557.3,4557.2,0.0448]
[1755268627426,3.2109817,4557.3,4557.2,0.0448]
[1755268627966,6.3339817,4557.3,4557.2,0.0448]
[1755268628132,6.7979817,4557.3,4557.2,0.0448]
[1755268628323,7.73880927,4557.3,4557.2,0.0448]
[1755268629062,11.73880927,4557.3,4557.2,0.0448]
[1755268629758,11.27480927,4557.3,4557.2,0.0448]
[1755268629955,10.83170927,4557.3,4557.2,0.0448]
[1755268630654,11.27480927,4557.3,4557.2,0.0448]
[1755268630956,15.28880927,4557.3,4557.2,0.0448]
[1755268631561,0.55,4556.5,4556.2,0.001]
[1755268631722,2.74476329,4556.3,4556.2,0.001]
[1755268631921,5.77403419,4556.3,4556.2,1e-08]
[1755268632164,3.58,4556.3,4556.2,1e-08]
[1755268633060,3.58,4556.3,4556.2,0.49790001]
[1755268634049,2.19446381,4557.0,4556.2,0.49790001]
[1755268634251,3.599,4556.9,4556.2,1.21898525]
[1755268634451,3.599,4556.8,4556.2,0.49790001]
[1755268634625,3.599,4556.8,4556.2,2.69270535]
[1755268634826,3.599,4556.8,4556.2,1e-08]
[1755268635479,3.599,4556.8,4556.2,0.94970001]
[1755268635833,3.599,4556.8,4556.3,2.19476329]
[1755268636178,3.599,4556.8,4556.4,0.4979]
[1755268636358,3.599,4556.8,4556.4,0.9497]
[1755268636565,0.002,4557.6,4556.4,0.4518]
[1755268636762,3.593,4557.5,4556.5,0.9497]
[1755268637057,3.593,4557.5,4556.6,0.9497]
[1755268637228,3.593,4557.5,4556.8,2.1945166]
[1755268637430,5.78719662,4557.5,4556.6,0.9497]
[1755268637634,3.593,4557.5,4557.0,2.19442562]
[1755268637934,0.002,4557.6,4556.7,2.19457063]
[1755268637935,3.595,4557.4,4557.1,0.9497]
[1755268638143,3.595,4557.4,4556.7,0.21945706]
[1755268638358,3.595,4557.4,4556.5,0.9497]
[1755268638560,3.595,4557.4,4556.8,2.19451734]
[1755268639326,3.595,4557.4,4556.8,2.19447602]
[1755268639760,3.595,4557.4,4556.7,2.19456345]
[1755268639952,2.19440121,4557.1,4556.3,2.19476011]
[1755268640144,3.591,4557.0,4556.3,2.19476011]
[1755268640549,3.591,4557.0,4556.4,2.19471477]
[1755268640730,3.591,4557.0,4556.2,2.19478784]
[1755268640930,3.591,4556.9,4556.3,0.02194763]
[1755268641126,0.002,4557.6,4556.3,0.02194763]
[1755268641127,3.591,4556.8,4556.4,2.49690988]
[1755268641328,3.59,4557.2,4556.8,2.19450142]
[1755268641529,3.59,4557.2,4556.9,0.4979]
[1755268641727,3.59,4557.2,4557.0,0.4979]
[1755268642139,0.002,4557.6,4557.0,0.4987]
[1755268642433,3.588,4557.5,4557.1,0.6075]
[1755268642930,3.588,4557.5,4557.1,0.1096]
[1755268643132,0.4431,4557.4,4557.1,0.1096]
[1755268643558,3.588,4557.5,4557.1,0.1096]
[1755268643760,5.7821897,4557.5,4557.1,0.1096]
[1755268643952,3.588,4557.5,4557.1,0.1096]
[1755268644153,5.78219994,4557.5,4557.1,0.1096]
[1755268644348,2.63733355,4557.4,4557.0,0.0008]
[1755268644554,2.194378,4557.1,4557.0,0.0008]
[1755268644748,5.778378,4557.1,4557.0,0.0008]
[1755268645070,3.584,4557.1,4557.0,0.0008]
[1755268645451,0.002,4557.6,4557.0,0.0008]
[1755268645651,3.584,4557.5,4557.1,0.1096]
[1755268646544,5.77819702,4557.5,4557.1,0.1096]
[1755268646940,3.584,4557.5,4557.1,0.1096]
[1755268647145,2.19423355,4557.4,4557.1,0.1096]
[1755268647369,6.59105901,4557.5,4557.1,0.1096]
[1755268647564,5.77819901,4557.5,4557.1,0.1096]
[1755268648180,2.19424421,4557.4,4557.1,0.1096]
[1755268648355,5.77818896,4557.5,4557.1,0.1096]
[1755268648557,0.002,4557.6,4557.1,0.1096]
[1755268648744,0.002,4557.6,4557.4,2.30383355]
[1755268648745,3.575,4557.5,4557.4,2.30383355]
[1755268648946,0.002,4557.6,4557.4,3.79831968]
[1755268649259,0.002,4557.6,4557.5,3.1438854]
[1755268650450,0.002,4557.6,4557.5,2.6920854]
[1755268650753,0.002,4557.6,4557.5,3.1438854]
[1755268652472,0.002,4557.6,4557.5,6.16582725]
[1755268652675,0.002,4557.6,4557.5,7.04533245]
[1755268654089,0.002,4557.6,4557.5,7.59533245]
[1755268654384,1e-08,4557.6,4557.5,7.59533245]
[1755268655302,1e-08,4558.0,4557.9,2.74399284]
[1755268655503,1e-08,4558.0,4557.9,9.31099284]
[1755268655690,1e-08,4558.0,4557.9,11.91577104]
[1755268658017,0.002,4558.3,4557.9,11.91577104]
[1755268658018,1e-08,4558.3,4558.2,2.74384844]
[1755268658229,0.4739,4560.6,4560.1,2.19291526]
[1755268658366,0.4739,4560.6,4559.4,3.566]
[1755268658567,0.4739,4560.6,4560.5,0.1096]
[1755268658772,2.19284075,4560.3,4558.8,3.0]
[1755268659069,5.75849545,4561.1,4558.7,3.566]
[1755268659070,0.4739,4560.7,4560.5,0.1096]
[1755268659293,2.66654687,4560.7,4560.5,0.1096]
[1755268659607,0.4739,4560.7,4560.5,0.1096]
[1755268659807,3.566,4561.0,4560.5,0.1096]
[1755268659808,0.4739,4560.6,4560.5,0.1096]
[1755268661790,3.566,4560.7,4560.5,0.1096]
[1755268662232,3.566,4560.7,4560.5,0.1104]
[1755268662387,3.551,4560.7,4560.5,0.1104]
[1755268662891,0.4739,4560.6,4560.5,0.1104]
[1755268663089,1.09565065,4560.6,4560.5,0.1104]
[1755268663994,3.28834459,4560.6,4560.5,0.1104]
[1755268664241,3.76724459,4560.6,4560.5,0.0008]
[1755268664534,0.4739,4560.6,4560.5,0.0008]
[1755268664695,0.4739,4560.6,4560.5,0.1104]
[1755268664889,3.551,4560.7,4560.5,0.1104]
[1755268665423,4.0249,4560.7,4560.5,0.1104]
[1755268665612,6.21754859,4560.7,4560.5,0.1104]
[1755268666012,0.4739,4560.7,4560.5,0.1104]
[1755268666214,3.565,4560.6,4560.5,0.1104]
[1755268666728,3.565,4561.0,4560.5,0.1104]
[1755268666951,0.002,4561.1,4560.5,0.1104]
[1755268667228,0.002,4561.1,4561.0,2.30210164]
[1755268667395,0.002,4561.1,4561.0,2.75156986]
[1755268668233,0.002,4561.1,4561.0,2.30210164]
[1755268671834,0.002,4561.1,4561.0,0.1096]
[1755268672152,0.4759,4561.1,4561.0,0.1096]
[1755268672355,0.9548,4561.1,4560.8,0.1096]
[1755268672556,0.4789,4561.0,4560.5,0.0008]
[1755268672756,2.19269394,4560.6,4560.5,0.0008]
[1755268673082,6.19522581,4560.6,4560.5,0.0008]
[1755268673374,7.14802581,4560.6,4560.5,0.0008]
[1755268674115,6.70949394,4560.6,4560.5,0.0008]
[1755268674250,6.23059394,4560.6,4560.5,0.0008]
[1755268675468,4.0379,4560.6,4560.5,0.0008]
[1755268676021,6.23059394,4560.6,4560.5,0.0008]
[1755268676223,4.0379,4560.6,4560.5,0.0008]
[1755268676423,7.34350555,4560.6,4560.5,0.0008]
[1755268676760,7.45310555,4560.6,4560.5,0.0008]
[1755268677924,2.19298245,4560.0,4559.9,0.10960001]
[1755268678159,9.41558245,4560.0,4559.9,1e-08]
[1755268678322,10.83671875,4560.0,4559.9,1e-08]
[1755268678523,12.13968195,4560.0,4559.9,1e-08]
[1755268678930,16.13968195,4560.0,4559.9,1e-08]
[1755268679360,15.58968195,4560.0,4559.9,1e-08]
[1755268680263,11.54778195,4560.0,4559.9,1e-08]
[1755268680560,7.563,4560.0,4559.9,1e-08]
[1755268680728,9.75598245,4560.0,4559.9,1e-08]
[1755268681360,3.563,4560.0,4559.9,1e-08]
[1755268681741,3.563,4560.0,4559.9,0.10960001]